[Event "German-ch Blitz Women 2022"]
[Site "Magdeburg"]
[Date "2022.08.13"]
[Round "2.9"]
[White "Braun, Kristin"]
[Black "Falke, Ornella"]
[Result "1-0"]
[ECO "B90"]
[WhiteElo "1897"]
[BlackElo "1912"]
[Annotator "TA"]
[PlyCount "65"]
[EventDate "2022.08.10"]
[EventType "tourn"]
[EventCountry "GER"]
[SourceTitle "playchess.com"]
[Source "ChessBase"]
[SourceQuality "1"]
[TimeControl "180+2"]

{[%evp 10,64,27,0,0,0,0,-247,46,48,52,54,3,-45,-50,-302,-112,-110,-109,-110,-108,-103,-2,-145,-151,-169,-163,-158,69,-46,155,120,150,162,148,164,557,556,527,401,733,0,1053,1016,1270,489,29989,1452,1308,1295,29998,29997,29997,29998,29998,29999,29999]} 1. e4 {[%emt 0:00:00]} c5 {[%emt 0:00:01]} 2. Nf3 {[%emt 0:00:01]} d6 3. d4 cxd4 {[%emt 0:00:03]} 4. Nxd4 {[%emt 0:00:01]} Nf6 {[%emt 0:00:02]} 5. Nc3 {[%emt 0:00:01]} a6 {[%emt 0:00:01]} 6. Qf3 {[%emt 0:00:06]} g6 {[%emt 0:00:06] B90: Sicilian Najdorf: Unusual White 6th moves, 6 Be3 Ng4 and 6 Be3 e5.} 7. Be3 {[%emt 0:00:11]} Bg7 {[%emt 0:00:02]} 8. O-O-O $2 {[%emt 0:00:02]} (8. h3 $11) 8... Nbd7 $2 {[%emt 0:00:04]} (8... Bg4 $19 9. Qg3 Bxd1 10. Kxd1 Nc6 11. Nxc6 bxc6) 9. h3 $1 $14 {[%emt 0:00:08]} Ne5 {[%emt 0:00:03] [#]} 10. Qe2 $146 {[%emt 0:00:05]} ({Predecessor:} 10. Qg3 Qc7 11. Kb1 Nc4 12. Bg5 Be6 13. Nxe6 fxe6 14. Bxc4 Qxc4 15. e5 dxe5 16. Qxe5 {1-0 (42) Papp,G (2559)-Basso,P (2322) Oslo 2014}) 10... b5 {[%emt 0:00:06]} 11. g4 {[%emt 0:00:26]} (11. f4 $11 Nc4 12. e5) 11... Bb7 $15 {[%emt 0:00:05] Strongly threatening ...b4.} 12. b3 $2 {[%emt 0:00:31][%mdl 8192]} ({White should try} 12. Bg2 $15) 12... Nxe4 $2 {[%emt 0:00:17]} (12... Rc8 $19 {has better winning chances.} 13. Bd2 Qa5) 13. Nxe4 $17 {[%emt 0:00:12]} Bxe4 {[%emt 0:00:01]} 14. f3 {[%emt 0:00:02]} Bb7 {[%emt 0:00:06]} 15. Bg2 {[%emt 0:00:04]} Qa5 {[%emt 0:00:04]} ({Black should play} 15... Qc7 $17 {White must now prevent ...0-0.} 16. f4 Bxg2 17. Qxg2 Rc8 $1 18. fxe5 dxe5) 16. Kb1 {[%emt 0:00:09]} (16. f4 $11 Nc4 17. bxc4 Qa3+ 18. Kd2 Qb4+ 19. Kc1 Qa3+ 20. Kd2 Qb4+ 21. Kc1 Qa3+) 16... O-O $1 {[%emt 0:00:09]} 17. f4 {[%emt 0:00:03]} Bxg2 {[%emt 0:00:04]} 18. Qxg2 {[%emt 0:00:00] [#]} Nd7 {[%emt 0:00:17]} (18... Nc4 $1 $17 {[%cal Rc4e3][%mdl 512]} 19. Bc1 Qb4) 19. Nc6 {[%emt 0:00:01]} ({White has to play} 19. h4 $1 $14) 19... Qa3 $2 {[%emt 0:00:04]} (19... Qc3 $15 {stays ahead.} 20. Bd4 Bxd4 21. Rxd4 Rae8) 20. Nxe7+ $16 {[%emt 0:00:02]} Kh8 {[%emt 0:00:01][%csl Gg7][%cal Ra3b2]} 21. Bd4 {[%emt 0:00:01] Inhibits Qb2+. Active counter play!} Bxd4 {[%emt 0:00:07]} 22. Rxd4 {[%emt 0:00:01]} Rac8 $2 {[%emt 0:00:14]} (22... Rae8 {is tougher.}) 23. Nxc8 $18 {[%emt 0:00:04]} Rxc8 {[%emt 0:00:01]} 24. Rhd1 {[%emt 0:00:12]} Nc5 (24... Nb6 $142 25. Qb7 (25. Rxd6 Na4 $11) 25... Qc5) 25. Rxd6 $2 {[%emt 0:00:07]} (25. f5 $18) 25... Kg7 $2 {[%emt 0:00:37][%mdl 8192]} (25... Na4 $11 26. c4 (26. bxa4 Qb4+ 27. Kc1 Qa3+ 28. Kb1 Qb4+ 29. Kc1 Qa3+ 30. Kb1 $11) 26... Nc3+ 27. Ka1 Nxd1 28. Rxd1 bxc4) 26. Qd5 {[%emt 0:00:08] White wants to mate with Qe5+.} Ne6 {[%emt 0:00:21]} 27. g5 {[%emt 0:00:08]} (27. Qe5+ $142 Kg8 28. Rxe6) 27... Rc5 {[%emt 0:00:06] [#]} (27... Qc5 $18 28. Qxc5 (28. Rxa6 $2 Qxc2+ 29. Ka1 Qc3+ 30. Kb1 Nc7 $19) 28... Rxc5 29. Rxa6 Nxf4) 28. Qd2 {[%emt 0:00:12]} (28. Qxe6 $142 $3 {[%mdl 512]} Rf5 29. Qe8 Qc5 {[#]} 30. Rxg6+ $3 {[%mdl 512]} hxg6 31. Rd8 Qg1+ 32. Kb2 Qd4+ 33. Rxd4 Re5 34. Qxe5+ Kh7 35. Rd8 f5 36. Qh8#) 28... Rf5 {[%emt 0:00:05]} 29. Qc3+ {[%emt 0:00:03]} Kf8 {[%emt 0:00:22] [#]} 30. Rd8+ $1 {[%emt 0:00:04] White mates.} Nxd8 {[%emt 0:00:03]} 31. Rxd8+ {[%emt 0:00:01]} Ke7 {[%emt 0:00:01]} 32. Qc7+ {[%emt 0:00:02]} Ke6 {[%emt 0:00:04]} 33. Qd7# {[%emt 0:00:06] Weighted Error Value: White=0.95/Black=1.46} 1-0

[Event "German-ch Blitz Women 2022"]
[Site "Magdeburg"]
[Date "2022.08.13"]
[Round "2.10"]
[White "Skibbe, Diana"]
[Black "Stangl, Anita"]
[Result "1-0"]
[ECO "C11"]
[WhiteElo "1943"]
[BlackElo "2023"]
[Annotator "NA RC"]
[PlyCount "37"]
[EventDate "2022.08.10"]
[EventType "tourn"]
[EventCountry "GER"]
[SourceTitle "playchess.com"]
[Source "ChessBase"]
[SourceQuality "1"]
[TimeControl "180+2"]

1. e4 {[%emt 0:00:01]} e6 {[%emt 0:00:00]} 2. d4 {[%emt 0:00:01]} d5 {[%emt 0:00:01]} 3. Nc3 {[%emt 0:00:02]} Nf6 {[%emt 0:00:00]} 4. e5 Nfd7 5. f4 c5 6. Nf3 {[%emt 0:00:05]} Nc6 {[%emt 0:00:02]} 7. Ne2 {[%emt 0:00:06]} cxd4 {[%emt 0:00:17]} 8. Nexd4 {[%emt 0:00:02]} Qb6 {[%emt 0:00:01]} 9. c3 {[%emt 0:00:02]} Nxd4 {[%emt 0:00:06]} 10. Nxd4 {[%emt 0:00:04]} f6 {[%emt 0:00:05]} 11. Bd3 {[%emt 0:00:21]} g6 {[%emt 0:00:14]} 12. O-O {[%emt 0:00:20]} fxe5 {[%emt 0:00:06]} 13. fxe5 {[%emt 0:00:10]} Nxe5 {[%emt 0:00:02]} 14. Bb5+ {[%emt 0:00:09]} Bd7 {[%emt 0:00:21]} 15. Bxd7+ {[%emt 0:00:02]} Kxd7 {[%emt 0:00:11]} 16. Kh1 {[%emt 0:00:01]} Re8 {[%emt 0:00:20]} 17. Qa4+ {[%emt 0:00:06]} Kc8 {[%emt 0:00:06]} 18. Qxe8+ {[%emt 0:00:03]} Kc7 {[%emt 0:00:08]} 19. Nxe6+ {[%emt 0:00:09]} 1-0

[Event "German-ch Blitz Women 2022"]
[Site "Magdeburg"]
[Date "2022.08.13"]
[Round "2.11"]
[White "Rath, Alina"]
[Black "Wulf, Constanze"]
[Result "1-0"]
[ECO "A11"]
[WhiteElo "2062"]
[BlackElo "1835"]
[Annotator "NA RC"]
[PlyCount "35"]
[EventDate "2022.08.10"]
[EventType "tourn"]
[EventCountry "GER"]
[SourceTitle "playchess.com"]
[Source "ChessBase"]
[SourceQuality "1"]
[TimeControl "180+2"]

1. c4 {[%emt 0:00:01]} c6 {[%emt 0:00:08]} 2. g3 {[%emt 0:00:04]} d5 {[%emt 0:00:01]} 3. Bg2 {[%emt 0:00:11]} Nf6 {[%emt 0:00:07]} 4. b3 {[%emt 0:00:02]} e5 {[%emt 0:00:08]} 5. Bb2 {[%emt 0:00:04]} Bd6 {[%emt 0:00:05]} 6. d3 {[%emt 0:00:05]} O-O {[%emt 0:00:07]} 7. e3 {[%emt 0:00:01]} Bf5 {[%emt 0:00:12]} 8. Ne2 {[%emt 0:00:06]} Re8 {[%emt 0:00:09]} 9. O-O {[%emt 0:00:02]} Nbd7 {[%emt 0:00:06]} 10. d4 {[%emt 0:00:09]} Rc8 {[%emt 0:00:23]} 11. cxd5 {[%emt 0:00:18]} cxd5 {[%emt 0:00:07]} 12. dxe5 {[%emt 0:00:15]} Bxe5 {[%emt 0:00:08]} 13. Bxe5 {[%emt 0:00:09]} Nxe5 {[%emt 0:00:03]} 14. Nbc3 {[%emt 0:00:07]} Nd3 {[%emt 0:00:56]} 15. Qd2 {[%emt 0:00:21]} Nb4 {[%emt 0:00:36]} 16. a3 {[%emt 0:00:13]} Nc2 {[%emt 0:00:12]} 17. Ra2 {[%emt 0:00:01]} d4 {[%emt 0:00:05]} 18. exd4 {[%emt 0:00:06]} 1-0

[Event "German-ch Blitz Women 2022"]
[Site "Magdeburg"]
[Date "2022.08.13"]
[Round "2.12"]
[White "Kunze, Kerstin"]
[Black "Doll, Rebecca"]
[Result "0-1"]
[ECO "C77"]
[WhiteElo "2020"]
[BlackElo "1933"]
[Annotator "TA"]
[PlyCount "75"]
[EventDate "2022.08.10"]
[EventType "tourn"]
[EventCountry "GER"]
[SourceTitle "playchess.com"]
[Source "ChessBase"]
[SourceQuality "1"]
[TimeControl "180+2"]

{[%evp 15,75,10,35,10,22,14,24,0,85,41,50,55,54,-19,31,-51,-63,-79,-77,-83,-68,-60,-70,-63,-42,-40,0,-135,126,35,34,28,28,29,29,27,71,26,20,0,90,0,0,0,37,33,73,-36,448,446,437,416,1455,416,1340,0,406,406,406,389,492,0]} 1. e4 {[%emt 0:00:02]} e5 {[%emt 0:00:01]} 2. Nf3 {[%emt 0:00:02]} Nc6 {[%emt 0:00:02]} 3. Bb5 {[%emt 0:00:01]} a6 {[%emt 0:00:01]} 4. Ba4 {[%emt 0:00:01]} Nf6 {[%emt 0:00:03]} 5. d3 {[%emt 0:00:07]} b5 {[%emt 0:00:08]} 6. Bb3 {[%emt 0:00:02]} Be7 {[%emt 0:00:04]} 7. O-O {[%emt 0:00:08] 7.a4 is more advanced technology.} O-O {[%emt 0:00:06]} 8. a4 {[%emt 0:00:04]} Bb7 {[%emt 0:00:04]} 9. c3 {[%emt 0:00:05] C84: Closed Ruy Lopez: Unusual White 6th moves.} d6 {[%emt 0:00:06]} 10. Nbd2 {[%emt 0:00:13]} Re8 {[%emt 0:00:14]} 11. Re1 {[%emt 0:00:02] White has an edge.} Bf8 {[%emt 0:00:03]} (11... Na5 $11) 12. Nf1 {[%emt 0:00:13]} (12. Ng5 {feels hotter.} Re7 13. Bxf7+ Rxf7 14. axb5 axb5 15. Qb3) 12... Na5 {[%emt 0:00:20]} 13. Ba2 {[%emt 0:00:14]} c5 {[%emt 0:00:11]} 14. Ng3 {[%emt 0:00:18]} (14. Bg5 $14) 14... c4 {[%emt 0:00:43] [#]} (14... h6 $11) 15. d4 $146 {[%emt 0:00:20]} ({White should try} 15. Bg5 $14) ({Predecessor:} 15. dxc4 bxc4 16. Qe2 Rc8 17. Rd1 Qc7 18. Bg5 Nd7 19. Nh4 {0-1 (72) Granda Berdayes,E-Gonzalez Pardo,D Asturias 1998}) 15... exd4 $1 $15 {[%emt 0:00:12]} 16. Nxd4 {[%emt 0:00:04]} Nxe4 {[%emt 0:00:37]} 17. Nxe4 {[%emt 0:00:20]} Bxe4 {[%emt 0:00:20]} 18. axb5 {[%emt 0:00:09]} axb5 {[%emt 0:00:04][%cal Oa5b3]} 19. Bf4 {[%emt 0:00:25]} Qf6 {[%emt 0:00:05]} 20. Bg3 {[%emt 0:00:07]} Bd3 {[%emt 0:00:04]} 21. Nxb5 {[%emt 0:00:09] [#]} (21. Bb1 $11 Bxb1 22. Qxb1) 21... Nb3 $2 {[%emt 0:00:06][%mdl 8192] Black is more active.} (21... Rxe1+ $1 $17 {and life is bright.} 22. Qxe1 Rb8) 22. Bxb3 {[%emt 0:00:10]} (22. Rxe8 $16 Rxe8 23. Bxb3) 22... Rxa1 $14 {[%emt 0:00:01]} 23. Qxa1 {[%emt 0:00:02]} Rxe1+ {[%emt 0:00:02]} 24. Qxe1 {[%emt 0:00:01]} cxb3 {[%emt 0:00:02]} 25. Nd4 {[%emt 0:00:02]} Qe7 {[%emt 0:00:04][%cal Re7e1]} 26. Qd1 {[%emt 0:00:06]} Bc4 {[%emt 0:00:01]} 27. h3 {[%emt 0:00:01]} h6 {[%emt 0:00:01]} (27... h5 $11 {keeps the balance.}) 28. Kh2 {[%emt 0:00:03]} (28. Nxb3 $16 Qe4 29. Nd4) 28... d5 $11 {[%emt 0:00:02]} 29. Qg4 {[%emt 0:00:07]} Qe4 {[%emt 0:00:01]} 30. Qc8 {[%emt 0:00:09] Threatens to win with Bd6.} Qe7 {[%emt 0:00:05] Against Bd6} 31. Nf5 {[%emt 0:00:01]} (31. Qb8 $16) 31... Qf6 $2 {[%emt 0:00:03][%mdl 8192]} (31... Qe6 $15 {keeps the upper hand.} 32. Qxe6 fxe6) 32. Bd6 $1 $18 {[%emt 0:00:06]} Kh7 {[%emt 0:00:05]} 33. Bxf8 {[%emt 0:00:06]} Bd3 {[%emt 0:00:02]} (33... Qe5+ $142 34. Ng3 Qf4) 34. Ng3 {[%emt 0:00:03]} (34. Bxg7 $142 {White wants to mate with Qh8+.} Qxg7 35. Nxg7 Kxg7 36. Qg4+ Kf8 37. Qb4+ Ke8 38. Qxb3) 34... Qxf2 {[%emt 0:00:01] [#]} (34... Bg6 $142 35. Qc5 Qe5) 35. Bd6 $2 {[%emt 0:00:03]} (35. Bxg7 $1 $18 {[%mdl 512] Qh8+ would kill now.} Qxg3+ 36. Kxg3 Kxg7 37. Qg4+ Kf8 38. Qf4) 35... Be4 $2 {[%emt 0:00:04][%mdl 8192]} (35... Qxb2 $11 {and Black stays safe.} 36. Qb7 Qc2) 36. Nxe4 dxe4 37. Qg4 e3 38. Qd1 $2 {[%mdl 32768] Weighted Error Value: White=0.74/Black=0.79. Loss on time!?} (38. Bf8 $18 {[%csl Gf8][%cal Rg4g7]} Qf6 39. Qe4+ Kg8 40. Bc5) 0-1

[Event "German-ch Blitz Women 2022"]
[Site "Magdeburg"]
[Date "2022.08.13"]
[Round "3.1"]
[White "Doll, Rebecca"]
[Black "Paehtz, Elisabeth"]
[Result "0-1"]
[ECO "B92"]
[WhiteElo "1933"]
[BlackElo "2484"]
[Annotator "TA"]
[PlyCount "102"]
[EventDate "2022.08.10"]
[EventType "tourn"]
[EventCountry "GER"]
[SourceTitle "playchess.com"]
[Source "ChessBase"]
[SourceQuality "1"]
[TimeControl "180+2"]

{[%evp 14,102,28,0,0,0,26,15,28,0,0,0,0,0,0,-6,10,14,17,1,36,31,22,35,38,-293,74,86,170,44,35,37,164,80,77,67,133,39,36,47,45,0,44,-15,0,0,143,175,183,185,195,70,78,-37,-35,-60,-58,-204,-194,-214,-218,-286,-284,-320,-289,-265,-133,-227,-224,-578,-453,-580,-558,-917,-922,-856,-885,-5381,-2599,-1796,-917,-870,-839,-12840,-12840,-12841,-12841,-12841,-12842,-12841,-12840]} 1. e4 {[%emt 0:00:01]} c5 {[%emt 0:00:00]} 2. Nf3 d6 3. d4 {[%emt 0:00:03]} cxd4 {[%emt 0:00:02]} 4. Nxd4 {[%emt 0:00:02]} Nf6 {[%emt 0:00:01]} 5. Nc3 {[%emt 0:00:01]} a6 {[%emt 0:00:00]} 6. Be2 {[%emt 0:00:04]} e5 {[%emt 0:00:01]} 7. Nf3 {[%emt 0:00:06]} h6 {[%emt 0:00:02]} 8. a4 {[%emt 0:00:16]} Be6 {[%emt 0:00:02] B92: Sicilian Najdorf: 6 Be2.} 9. O-O {[%emt 0:00:35]} Nbd7 {[%emt 0:00:02][%cal Bb8d7,Bd7c5,Bc5d3][%mdl 32]} 10. Re1 {[%emt 0:00:11]} Be7 {[%emt 0:00:02] The position is equal.} 11. a5 {[%emt 0:00:14]} Rc8 {[%emt 0:00:01]} 12. Be3 {[%emt 0:00:11]} O-O {[%emt 0:00:08][%cal Oc8c3] [#]} 13. Bd3 $146 {[%emt 0:00:16]} ({Predecessor:} 13. Nd2 d5 14. exd5 Nxd5 15. Nxd5 Bxd5 16. Bf3 Bxf3 17. Nxf3 Qc7 18. c3 Rfe8 19. Qd5 {½-½ (25) Istona,M (2173)-Postupa,P (2241) Prague 2016}) 13... Nc5 {[%emt 0:00:10]} 14. Qe2 {[%emt 0:00:11]} Nxd3 {[%emt 0:00:04]} 15. cxd3 {[%emt 0:00:20]} Qc7 {[%emt 0:00:14]} 16. d4 {[%emt 0:00:07]} Bc4 {[%emt 0:00:02]} 17. Qd2 {[%emt 0:00:02]} Rfe8 {[%emt 0:00:16]} 18. d5 {[%emt 0:00:02]} Qd7 {[%emt 0:00:08]} 19. Ra4 $2 {[%emt 0:00:22][%mdl 8192] [#]} (19. h3 $14) 19... Bf8 $2 {[%emt 0:00:18]} (19... Nxe4 $1 $19 {[%mdl 512]} 20. Qd1 Nxc3 21. bxc3 Bxd5 $1 {[%mdl 512]}) 20. Rb4 $16 {[%emt 0:00:07]} Ng4 {[%emt 0:00:33]} (20... Be7 $16) 21. h3 {[%emt 0:00:07]} (21. Na4 $1 $18 {[%cal Ra4b6] And now Nb6 would win.} Bb5 22. Nb6) 21... Nxe3 $14 {[%emt 0:00:02]} 22. Qxe3 {[%emt 0:00:02]} Qc7 {[%emt 0:00:11]} (22... Bb5 $14) 23. Qb6 {[%emt 0:00:02]} (23. Nd2 $18 {has better winning chances.} Bb5 24. Nxb5) 23... Qxb6 $16 {[%emt 0:00:11]} 24. Rxb6 {[%emt 0:00:02]} Rc7 {[%emt 0:00:02]} (24... Be7 $14) 25. Rd1 {[%emt 0:00:04]} ({White should try} 25. Re3 $16) 25... Rec8 $14 {[%emt 0:00:05]} 26. Nh4 {[%emt 0:00:07]} g6 $1 {[%emt 0:00:06] Prevents Nf5.} 27. Nf3 {[%emt 0:00:02]} Be7 {[%emt 0:00:08] [#]} 28. Nd2 {[%emt 0:00:03]} (28. Nxe5 $1 $14 dxe5 29. d6) 28... Bd3 {[%emt 0:00:05]} 29. Nf3 {[%emt 0:00:01]} Bc2 {[%emt 0:00:17]} (29... Bc4 $11) 30. Rd2 $16 {[%emt 0:00:04]} Rxc3 {[%emt 0:00:04]} 31. bxc3 {[%emt 0:00:02]} Bxe4 {[%emt 0:00:01] [#]} 32. Rxb7 {[%emt 0:00:04]} (32. Rb4 $1 $18 {[%cal Rb4e4]} f5 33. Rxb7) 32... Bd8 $14 {[%emt 0:00:01]} 33. Rd7 {[%emt 0:00:03]} ({White should play} 33. Rb4 $16 Bxf3 34. Rdb2 (34. gxf3 Bxa5 35. Ra4 Bxc3 $14)) 33... Bc7 $1 $15 {[%emt 0:00:07]} 34. Re2 {[%emt 0:00:03]} Bf5 {[%emt 0:00:01]} 35. Re7 {[%emt 0:00:03] Black converts the advantage convincingly.} (35. Rxc7 $1 $15 Rxc7 36. Rb2) 35... Kf8 $19 {[%emt 0:00:01][%mdl 64] Trapped Piece} 36. Rxc7 {[%emt 0:00:03]} Rxc7 {[%emt 0:00:01][%mdl 4096] Endgame KRB-KRN} 37. Re3 {[%emt 0:00:01]} Rc5 {[%emt 0:00:02][%csl LRa5,LRd5]} 38. Nd2 {[%emt 0:00:03]} Rxa5 {[%emt 0:00:03]} 39. c4 {[%emt 0:00:04]} Bd7 {[%emt 0:00:06]} ({Better is} 39... Ra1+ $19 40. Kh2 Ra2) 40. Nb3 {[%emt 0:00:02]} (40. Rb3 $17 {might work better.}) 40... Ra3 {[%emt 0:00:03]} 41. Rd3 $2 {[%emt 0:00:03]} (41. Kf1) 41... Bf5 {[%emt 0:00:08] Black is clearly winning.} 42. Rg3 {[%emt 0:00:02]} Bc2 {[%emt 0:00:04]} 43. Nd2 {[%emt 0:00:03]} Rxg3 {[%emt 0:00:01]} 44. fxg3 {[%emt 0:00:01] KB-KN} a5 {[%emt 0:00:01][%cal Ba6a5,Ba5a4,Ba4a3,Ba3a2][%mdl 32] ...a4 is the strong threat.} 45. Kf2 {[%emt 0:00:05]} a4 {[%emt 0:00:01]} 46. c5 {[%emt 0:00:04]} dxc5 {[%emt 0:00:03]} 47. Nc4 {[%emt 0:00:00]} Bb3 {[%emt 0:00:02]} 48. Nxe5 {[%emt 0:00:03]} a3 {[%emt 0:00:04]} 49. Nd7+ {[%emt 0:00:02]} Ke7 {[%emt 0:00:01]} 50. Nxc5 {[%emt 0:00:01]} Bxd5 {[%emt 0:00:02] ( -> ...Kd6)} 51. Nd3 {[%emt 0:00:02]} a2 {[%emt 0:00:02] Weighted Error Value: White=1.00/Black=0.40} 0-1

[Event "German-ch Blitz Women 2022"]
[Site "Magdeburg"]
[Date "2022.08.13"]
[Round "3.2"]
[White "Wulf, Constanze"]
[Black "Kunze, Kerstin"]
[Result "1/2-1/2"]
[ECO "A05"]
[WhiteElo "1835"]
[BlackElo "2020"]
[Annotator "TA"]
[PlyCount "52"]
[EventDate "2022.08.10"]
[EventType "tourn"]
[EventCountry "GER"]
[SourceTitle "playchess.com"]
[Source "ChessBase"]
[SourceQuality "1"]
[TimeControl "180+2"]

{[%evp 20,52,9,6,25,19,33,14,75,62,62,15,29,-338,-323,-299,-210,-259,-96,-106,-104,-75,154,-521,-521,-495,-406,-676,-633,-29992,-29993,-29995,-29996,-29998,-29999]} 1. Nf3 {[%emt 0:00:03]} Nf6 {[%emt 0:00:02]} 2. b3 {[%emt 0:00:02]} d5 {[%emt 0:00:04]} 3. Bb2 {[%emt 0:00:01]} e6 {[%emt 0:00:01]} 4. e3 {[%emt 0:00:01]} Be7 {[%emt 0:00:03]} 5. Be2 {[%emt 0:00:02]} O-O {[%emt 0:00:02]} 6. O-O {[%emt 0:00:03]} b6 {[%emt 0:00:02]} 7. c4 {[%emt 0:00:15]} Bb7 {[%emt 0:00:04]} 8. Nc3 {[%emt 0:00:06]} c5 {[%emt 0:00:03]} 9. cxd5 {[%emt 0:00:16]} Nxd5 {[%emt 0:00:02]} 10. d4 {[%emt 0:00:17]} cxd4 {[%emt 0:00:12]} 11. Nxd4 {[%emt 0:00:05]} Bf6 {[%emt 0:00:15] A30: Symmetrical English: Double Fianchetto and Hedgehog.} (11... Ba3 {keeps more tension.} 12. Bxa3 Nxc3 13. Qe1 Nxe2+ 14. Qxe2 Qd5) 12. Rc1 {[%emt 0:00:28]} Nd7 {[%emt 0:00:17] [#]} 13. Bf3 $146 {[%emt 0:00:08]} ({Predecessor:} 13. Ne4 Be5 14. Ng3 Qe7 15. Qd2 Rac8 16. Nb5 Bxb2 17. Qxb2 a6 18. Nd4 Qf6 19. Rxc8 Rxc8 {½-½ (56) Cejkova,M (2080)-Kupcova,K (1815) Usti nad Labem 1996}) 13... Ne5 {[%emt 0:00:06]} (13... Nc5 $11 {keeps the balance.}) 14. Bxd5 $16 {[%emt 0:00:31]} exd5 {[%emt 0:00:10]} 15. Nf5 {[%emt 0:00:31] Pair of Knights!} (15. Ba3 $14) 15... Qd7 $11 {[%emt 0:00:19]} 16. Ba3 $2 {[%emt 0:00:08][%mdl 8192]} (16. Ng3 $11) 16... Qxf5 $19 {[%emt 0:00:11]} 17. Bxf8 {[%emt 0:00:02]} Rxf8 {[%emt 0:00:03]} ({Don't go for} 17... Kxf8 $2 18. Nb5 $19) 18. Nxd5 {[%emt 0:00:07]} Nd3 $2 {[%emt 0:00:49]} (18... Ba6 $19 {is more deadly.} 19. f4 Bxf1 20. fxe5 Bd3 21. Nxf6+ gxf6 22. exf6 Qg6) 19. Nxf6+ $17 {[%emt 0:00:03]} gxf6 {[%emt 0:00:03]} 20. Rc7 {[%emt 0:00:06]} Qe4 {[%emt 0:00:15] [#]} (20... Rb8 $17 {and life is bright.}) 21. f3 $2 {[%emt 0:00:12]} (21. Rxb7 $1 $16 {[%mdl 512] is necessary to keep the advantage.} Qxb7 22. Qxd3) 21... Qxe3+ $19 {[%emt 0:00:01]} 22. Kh1 {[%emt 0:00:03]} Ba6 {[%emt 0:00:09]} 23. Qc2 {[%emt 0:00:14]} (23. h3 $142 Nf2+ 24. Rxf2 Qxf2 25. Kh2) 23... Re8 {[%emt 0:00:06][%cal Od3f2] ( -> ...Nf2+!)} 24. Rd7 {[%emt 0:00:01] [#]} Nf2+ $1 {[%emt 0:00:05][%mdl 512] Black mates.} 25. Qxf2 {[%emt 0:00:01]} (25. Kg1 Nh3+) 25... Qxf2 {[%emt 0:00:02][%mdl 64] Remove Defender} 26. Rxf2 {[%emt 0:00:02]} Re1+ {[%emt 0:00:01][%mdl 32768] Weighted Error Value: White=1.59/Black=0.58. An unexpected result.} 1/2-1/2

[Event "German-ch Blitz Women 2022"]
[Site "Magdeburg"]
[Date "2022.08.13"]
[Round "3.3"]
[White "Stangl, Anita"]
[Black "Rath, Alina"]
[Result "1/2-1/2"]
[ECO "B57"]
[WhiteElo "2023"]
[BlackElo "2062"]
[Annotator "NA RC"]
[PlyCount "100"]
[EventDate "2022.08.10"]
[EventType "tourn"]
[EventCountry "GER"]
[SourceTitle "playchess.com"]
[Source "ChessBase"]
[SourceQuality "1"]
[TimeControl "180+2"]

1. e4 {[%emt 0:00:00]} c5 {[%emt 0:00:01]} 2. Nf3 {[%emt 0:00:01]} Nc6 {[%emt 0:00:01]} 3. d4 {[%emt 0:00:01]} cxd4 {[%emt 0:00:01]} 4. Nxd4 {[%emt 0:00:00]} Nf6 {[%emt 0:00:01]} 5. Nc3 {[%emt 0:00:01]} d6 {[%emt 0:00:01]} 6. Bc4 {[%emt 0:00:01]} Bd7 {[%emt 0:00:01]} 7. O-O {[%emt 0:00:02]} g6 {[%emt 0:00:02]} 8. Nde2 {[%emt 0:00:04]} Bg7 {[%emt 0:00:01]} 9. Ng3 {[%emt 0:00:02]} O-O {[%emt 0:00:02]} 10. Bg5 {[%emt 0:00:02]} a6 {[%emt 0:00:02]} 11. a4 {[%emt 0:00:02]} Rc8 {[%emt 0:00:01]} 12. Ba2 {[%emt 0:00:04]} h6 {[%emt 0:00:10]} 13. Bf4 {[%emt 0:00:06]} Na5 {[%emt 0:00:07]} 14. Qd3 {[%emt 0:00:12]} Kh7 {[%emt 0:00:12]} 15. Bd2 {[%emt 0:00:05]} Nc6 {[%emt 0:00:02]} 16. Qe3 {[%emt 0:00:17]} Nb4 {[%emt 0:00:10]} 17. Bb3 {[%emt 0:00:04]} Nc6 {[%emt 0:00:11]} 18. Rad1 {[%emt 0:00:02]} Na5 {[%emt 0:00:04]} 19. Bd5 {[%emt 0:00:17]} Nc4 {[%emt 0:00:03]} 20. Bxc4 {[%emt 0:00:02]} Rxc4 {[%emt 0:00:02]} 21. b3 {[%emt 0:00:01]} Rc8 {[%emt 0:00:01]} 22. Nd5 {[%emt 0:00:02]} Ng8 {[%emt 0:00:11]} 23. Nb6 {[%emt 0:00:06]} Rc6 {[%emt 0:00:05]} 24. Nxd7 {[%emt 0:00:01]} Qxd7 {[%emt 0:00:01]} 25. c4 {[%emt 0:00:04]} Qc8 {[%emt 0:00:08]} 26. Kh1 {[%emt 0:00:09]} Rc5 {[%emt 0:00:05]} 27. f4 {[%emt 0:00:07]} b6 {[%emt 0:00:10]} 28. f5 {[%emt 0:00:01]} g5 {[%emt 0:00:05]} 29. Nh5 {[%emt 0:00:03]} Be5 {[%emt 0:00:09]} 30. Bc3 {[%emt 0:00:10]} f6 {[%emt 0:00:09]} 31. Bb4 {[%emt 0:00:09]} Rc6 {[%emt 0:00:02]} 32. Ng3 {[%emt 0:00:03]} Qb7 {[%emt 0:00:09]} 33. Ne2 {[%emt 0:00:02]} b5 {[%emt 0:00:04]} 34. axb5 {[%emt 0:00:06]} axb5 {[%emt 0:00:01]} 35. c5 {[%emt 0:00:01]} dxc5 {[%emt 0:00:03]} 36. Bxc5 {[%emt 0:00:01]} Rfc8 {[%emt 0:00:02]} 37. b4 {[%emt 0:00:00]} Qc7 {[%emt 0:00:08]} 38. Rd5 {[%emt 0:00:03]} Kg7 {[%emt 0:00:14]} 39. Rfd1 {[%emt 0:00:01]} Qb7 {[%emt 0:00:09]} 40. Nd4 {[%emt 0:00:12]} Bxd4 {[%emt 0:00:12]} 41. Qxd4 {[%emt 0:00:01]} Qc7 {[%emt 0:00:12]} 42. Rd7 {[%emt 0:00:02]} Qf4 {[%emt 0:00:02]} 43. Bxe7 {[%emt 0:00:04]} Nxe7 {[%emt 0:00:13]} 44. Rxe7+ {[%emt 0:00:01]} Kf8 {[%emt 0:00:00]} 45. Rd7 {[%emt 0:00:09]} Rc1 {[%emt 0:00:07]} 46. Qd6+ {[%emt 0:00:05]} Qxd6 {[%emt 0:00:05]} 47. R7xd6 {[%emt 0:00:00]} Rxd1+ {[%emt 0:00:02]} 48. Rxd1 {[%emt 0:00:01]} Rc4 {[%emt 0:00:00]} 49. Rb1 {[%emt 0:00:06]} Rxe4 {[%emt 0:00:01]} 50. h3 {[%emt 0:00:01]} Ke7 {[%emt 0:00:01]} 1/2-1/2